bitfinex/quotes_SOLUSD_20240626
["timestamp","ask_amount","ask_price","bid_price","bid_amount"]
[1719421895410,0.8411848,135.64,135.63,7.713]
[1719421895913,0.8411848,135.64,135.57,36.8788]
[1719421896092,0.8411848,135.64,135.59,25.8121]
[1719421896093,72.6635848,135.64,135.59,25.8121]
[1719421896286,72.6635848,135.64,135.56,18.4414]
[1719421896287,64.45,135.6,135.56,18.4414]
[1719421896486,64.45,135.6,135.53,18.4459]
[1719421896487,0.79114839,135.59,135.53,18.4459]
[1719421896686,71.8246,135.6,135.55,7.3769]
[1719421896897,64.45,135.6,135.51,100.0]
[1719421897113,64.45,135.6,135.57,18.4395]
[1719421897500,71.825,135.6,135.54,18.444]
[1719421897812,71.825,135.6,135.56,7.3767]
[1719421897813,64.45,135.6,135.56,7.3767]
[1719421898196,72.3829,135.61,135.58,7.3753]
[1719421898396,72.3829,135.61,135.59,7.3751]
[1719421898713,72.3829,135.61,135.58,25.8146]
[1719421899217,72.3829,135.61,135.59,7.3751]
[1719421899421,7.9329,135.61,135.59,7.3751]
[1719421899717,7.9329,135.61,135.58,25.8145]
[1719421899901,7.9329,135.61,135.58,18.4389]
[1719421900209,7.9329,135.61,135.58,25.8145]
[1719421900420,15.3071,135.61,135.57,0.34]
[1719421900589,7.9329,135.61,135.57,0.17]
[1719421900789,15.307,135.61,135.56,7.7163]
[1719421900993,7.9329,135.61,135.6,7.3746]
[1719421901213,7.9329,135.61,135.56,0.34]
[1719421901419,7.9329,135.61,135.57,7.3761]
[1719421901586,7.9329,135.61,135.56,18.7815]
[1719421901587,7.3746,135.6,135.56,18.7815]
[1719421901793,7.3746,135.6,135.49,200.0]
[1719421901794,64.45,135.58,135.54,7.3776]
[1719421902110,71.8257,135.58,135.53,18.4454]
[1719421902508,64.45,135.58,135.55,7.377]
[1719421902706,64.45,135.58,135.55,18.4423]
[1719421903311,64.45,135.58,135.55,25.8195]
[1719421903616,64.45,135.58,135.56,7.3767]
[1719421903988,64.45,135.58,135.55,18.4423]
[1719421904915,64.45,135.58,135.56,7.3767]
[1719421905295,64.45,135.58,135.55,18.4423]
[1719421905296,64.45,135.58,135.57,7.5462]
[1719421905503,64.45,135.58,135.57,7.7162]
[1719421907222,7.9329,135.61,135.58,7.3756]
[1719421907516,20.0,135.63,135.61,7.3737]
[1719421907686,20.0,135.63,135.6,7.3744]
[1719421908117,20.0,135.63,135.61,7.3738]
[1719421908303,9.3950848,135.64,135.62,7.3735]
[1719421908616,9.3950848,135.64,135.61,25.8086]
[1719421909514,9.3950848,135.64,135.6,7.3744]
[1719421909700,9.3950848,135.64,135.61,7.3737]
[1719421910417,9.3950848,135.64,135.6,25.8101]
[1719421910893,9.3950848,135.64,135.61,7.374]
[1719421911215,9.3950848,135.64,135.6,25.8101]
[1719421911609,16.7674848,135.64,135.6,25.8101]
[1719421911811,9.3950848,135.64,135.6,25.8101]
[1719421912211,9.3950848,135.64,135.61,0.17]
[1719421912430,9.3950848,135.64,135.62,7.3733]
[1719421912605,16.7676848,135.64,135.6,25.8101]
[1719421912809,16.7676848,135.64,135.6,18.4357]
[1719421913198,16.7676848,135.64,135.54,121.4804]
[1719421913199,71.8242,135.61,135.5,152.1249]
[1719421913403,7.3746,135.6,135.56,18.4411]
[1719421914016,7.3746,135.6,135.56,25.8176]
[1719421914300,71.8242,135.61,135.57,7.3762]
[1719421914822,64.45,135.61,135.58,18.4392]
[1719421915015,64.45,135.61,135.59,7.3746]
[1719421915199,64.45,135.61,135.58,25.8144]
[1719421915924,64.45,135.61,135.58,18.4392]
[1719421916108,71.8242,135.61,135.57,0.34]
[1719421916310,71.8242,135.61,135.56,7.3766]
[1719421916608,7.3756,135.59,135.55,18.4422]
[1719421916816,7.3754,135.59,135.55,18.4422]
[1719421917121,7.3754,135.59,135.55,25.8194]
[1719421917526,7.3754,135.59,135.55,18.4422]
[1719421919028,20.79114839,135.58,135.54,7.3775]
[1719421919204,20.79114839,135.58,135.54,18.4446]
[1719421919529,20.79114839,135.58,135.54,25.8223]
[1719421920235,64.45,135.56,135.51,18.4478]
[1719421920407,0.79114839,135.55,135.51,18.4478]
[1719421920727,0.79114839,135.55,135.51,25.8271]
[1719421921704,0.79114839,135.55,135.46,19.6738]
[1719421921705,0.79114839,135.55,135.49,7.38]
[1719421921934,64.45,135.52,135.48,18.4519]
[1719421922223,64.45,135.52,135.49,7.3804]
[1719421922444,64.45,135.52,135.48,18.4519]
[1719421922609,64.45,135.52,135.49,7.3805]
[1719421922810,0.79114839,135.51,135.48,18.4519]
[1719421923135,0.79114839,135.51,135.47,7.3815]
[1719421923519,27.6478,135.5,135.47,7.3815]
[1719421924433,27.6478,135.5,135.47,25.8356]
[1719421925041,7.9538,135.5,135.49,25.8321]
[1719421925240,7.9538,135.5,135.46,0.17]
[1719421925241,7.9538,135.5,135.48,7.381]
[1719421925605,7.9538,135.5,135.49,7.3806]
[1719421925908,7.9538,135.5,135.48,18.4526]
[1719421926212,7.9538,135.5,135.49,7.3806]
[1719421926425,7.9538,135.5,135.48,25.8335]
[1719421926623,64.45,135.52,135.5,7.3798]
[1719421926822,64.45,135.52,135.5,7.3799]
[1719421927020,64.45,135.52,135.51,7.3795]
[1719421927428,8.0387,135.53,135.52,7.3789]
[1719421927629,8.0387,135.53,135.5,18.4498]
[1719421927939,8.0387,135.53,135.51,7.379]
[1719421928229,84.45,135.55,135.53,7.3782]
[1719421928429,84.45,135.55,135.52,25.8253]
[1719421929038,84.45,135.55,135.52,18.4466]
[1719421930340,84.45,135.55,135.5,7.3799]
[1719421930341,0.79114839,135.54,135.5,7.3799]
[1719421930521,0.79114839,135.54,135.49,25.8309]
[1719421930720,64.45,135.51,135.46,18.4543]
[1719421930934,8.17114839,135.5,135.46,25.8363]
[1719421931246,0.79114839,135.5,135.47,7.3816]
[1719421931428,20.25984839,135.5,135.47,7.3816]
[1719421931619,20.25984839,135.5,135.46,25.8363]
[1719421932021,64.45,135.47,135.43,25.8421]
[1719421932337,0.79114839,135.46,135.43,25.8421]
[1719421932554,0.79114839,135.46,135.43,18.4585]
[1719421932839,0.79114839,135.46,135.43,25.8423]
[1719421933837,0.79114839,135.46,135.43,18.4585]
[1719421934042,0.79114839,135.46,135.42,7.3842]
[1719421934243,20.79114839,135.46,135.42,7.3842]
[1719421934448,0.79114839,135.45,135.42,7.3842]
[1719421935552,0.79114839,135.45,135.4,18.4625]
[1719421935553,64.45,135.43,135.4,18.4625]
[1719421935846,64.45,135.43,135.4,25.8478]
[1719421937254,64.45,135.43,135.41,7.3845]
[1719421937544,19.8,135.46,135.44,25.8411]
[1719421937744,20.59114839,135.46,135.43,7.3838]
[1719421937952,20.59114839,135.46,135.41,18.4616]
[1719421938157,64.45,135.47,135.43,18.4595]
[1719421938320,0.79114839,135.46,135.42,7.384]
[1719421938526,0.79114839,135.46,135.43,7.3838]
[1719421938731,64.45,135.47,135.42,18.4609]
[1719421938932,64.45,135.47,135.44,7.3833]
[1719421939734,64.45,135.47,135.44,7.3832]
[1719421940048,64.45,135.47,135.45,7.3827]
[1719421940253,64.45,135.47,135.45,7.3824]
[1719421940549,64.45,135.47,135.44,18.4581]
[1719421940736,8.1036,135.48,135.44,25.8412]
[1719421940940,15.4848,135.48,135.44,25.8412]
[1719421941128,7.3823,135.46,135.43,0.34]
[1719421941328,8.1036,135.48,135.44,7.5529]
[1719421941542,8.1036,135.48,135.44,7.3829]
[1719421941746,15.4847,135.48,135.43,25.843]
[1719421942254,0.79114839,135.47,135.43,25.843]
[1719421943055,16.27584839,135.48,135.43,25.843]
[1719421943243,16.27584839,135.48,135.44,7.3833]
[1719421943549,8.89474839,135.48,135.44,7.3833]
[1719421944540,16.27584839,135.48,135.44,7.3833]
[1719421944851,16.27584839,135.48,135.43,18.4594]
[1719421944852,16.27584839,135.48,135.43,25.8431]
[1719421945059,7.3825,135.46,135.41,7.3845]
[1719421945231,64.45,135.43,135.4,18.4632]
[1719421945433,64.45,135.43,135.39,7.3856]
[1719421945631,64.45,135.43,135.4,7.3854]
[1719421945956,7.3856,135.4,135.35,7.3881]
[1719421946136,7.3856,135.4,135.31,122.92778985]
[1719421946137,7.387,135.38,135.31,22.92778985]
[1719421946339,0.79114839,135.38,135.33,7.3892]
[1719421946853,8.17774839,135.38,135.33,7.3892]
[1719421947057,0.79114839,135.38,135.34,7.3887]
[1719421947260,0.79114839,135.38,135.32,18.4738]
[1719421947737,0.79114839,135.38,135.33,7.3889]
[1719421947936,8.17804839,135.38,135.33,7.3889]
[1719421948132,8.17804839,135.38,135.32,25.8635]
[1719421948330,64.45,135.35,135.32,25.8635]
[1719421948663,64.45,135.35,135.32,18.4738]
[1719421948860,64.25,135.35,135.32,25.8631]
[1719421949163,64.25,135.35,135.32,18.4738]
[1719421949452,64.25,135.35,135.32,25.8635]
[1719421949957,64.25,135.35,135.33,7.3893]
[1719421950456,64.25,135.35,135.32,18.4738]
[1719421950457,64.25,135.35,135.32,25.8636]
[1719421950953,64.25,135.35,135.32,18.4738]
[1719421951937,64.25,135.35,135.32,25.8634]
[1719421952465,64.25,135.35,135.33,7.3892]
[1719421952662,64.25,135.35,135.34,7.3887]
[1719421953153,7.912,135.41,135.37,7.3871]
[1719421953154,64.45,135.39,135.37,7.3871]
[1719421953352,64.45,135.39,135.34,18.6413]
[1719421953529,0.79114839,135.38,135.35,7.3881]
[1719421953863,0.79114839,135.38,135.34,25.8599]
[1719421955251,0.79114839,135.38,135.35,7.3882]
[1719421955652,0.79114839,135.38,135.34,18.4713]
[1719421955845,64.45,135.39,135.36,18.4687]
[1719421956955,64.45,135.39,135.35,7.388]
[1719421956956,8.17774839,135.38,135.33,26.0319]
[1719421957137,0.79114839,135.38,135.3,18.4764]
[1719421957338,0.79114839,135.38,135.33,7.3888]
[1719421957339,7.3869,135.38,135.33,7.3888]
[1719421957544,0.79114839,135.4,135.37,7.3868]
[1719421957853,85.24114839,135.4,135.37,7.3868]
[1719421958053,84.45,135.4,135.39,7.386]
[1719421958343,84.45,135.4,135.38,18.4652]
[1719421958344,64.45,135.4,135.38,18.4652]
[1719421958553,64.45,135.4,135.37,7.387]
[1719421958943,64.45,135.4,135.36,0.34]
[1719421958944,64.45,135.4,135.36,7.3875]
[1719421959142,64.45,135.4,135.37,7.387]
[1719421959946,64.45,135.4,135.36,7.3875]
[1719421960155,71.8355,135.4,135.35,26.1976]
[1719421960340,71.8355,135.4,135.36,0.34]
[1719421960548,64.45,135.4,135.36,7.3876]
[1719421960747,0.79114839,135.39,135.35,7.388]
[1719421960942,0.79114839,135.39,135.28,36.9586]
[1719421961154,7.3871,135.38,135.33,7.389]
[1719421961555,0.79114839,135.39,135.33,18.4731]
[1719421961774,20.79114839,135.39,135.35,7.3882]
[1719421962257,20.79114839,135.39,135.35,25.8587]
[1719421962566,20.79114839,135.39,135.36,7.3876]
[1719421962945,20.79114839,135.39,135.35,25.8585]
[1719421963241,28.17724839,135.39,135.35,18.4705]
[1719421963454,28.17724839,135.39,135.32,18.4741]
[1719421963455,64.45,135.36,135.32,18.4741]
[1719421963666,71.838,135.36,135.32,18.4741]
[1719421964044,71.838,135.36,135.32,25.8639]
[1719421964242,64.45,135.36,135.32,25.8639]
[1719421964745,71.8378,135.36,135.32,18.4741]
[1719421964967,0.79114839,135.35,135.32,18.4741]
[1719421965269,0.79114839,135.35,135.31,7.3902]
[1719421967367,28.17954839,135.35,135.3,7.3907]
[1719421968067,28.17954839,135.35,135.31,7.3903]
[1719421968366,20.79114839,135.35,135.31,7.3903]
[1719421969155,20.0,135.35,135.32,7.3897]
[1719421969361,20.79114839,135.35,135.32,7.3897]
[1719421969744,20.79114839,135.35,135.31,25.866]
[1719421969941,20.0,135.35,135.32,7.3897]
[1719421970451,64.45,135.36,135.34,7.3886]
[1719421970860,64.45,135.36,135.33,25.8617]
[1719421971066,64.45,135.36,135.34,7.3887]
[1719421971369,64.45,135.36,135.33,18.4726]
[1719421971678,64.45,135.36,135.33,25.8618]
[1719421972858,64.45,135.36,135.33,18.4726]
[1719421973069,64.45,135.36,135.34,7.7285]
[1719421974169,64.45,135.36,135.34,0.17]
[1719421974685,64.45,135.36,135.34,7.3887]
[1719421975267,64.45,135.36,135.33,25.8617]
[1719421975455,64.45,135.36,135.34,7.3887]
[1719421975655,64.45,135.36,135.35,7.3882]
[1719421975971,64.45,135.36,135.34,7.3886]
[1719421976472,64.45,135.36,135.33,25.8616]
[1719421976773,64.45,135.36,135.34,7.3887]
[1719421977676,64.45,135.36,135.33,25.8618]
[1719421978875,64.45,135.36,135.32,7.3895]
[1719421979047,64.45,135.36,135.33,7.3889]
[1719421979476,64.45,135.36,135.33,25.862]
[1719421979656,64.45,135.36,135.33,18.4731]
[1719421979856,64.45,135.36,135.32,7.3897]
[1719421980059,0.79114839,135.35,135.31,25.8662]
[1719421980273,64.45,135.36,135.31,18.476]
[1719421980471,64.45,135.36,135.32,7.3896]
[1719421980678,71.8378,135.36,135.31,25.8662]
[1719421980975,64.45,135.36,135.32,7.3897]
[1719421981156,71.8379,135.36,135.32,7.3898]
[1719421981355,64.45,135.36,135.32,7.3898]
[1719421981582,71.8378,135.36,135.31,25.8664]
[1719421981880,0.79114839,135.35,135.31,7.3903]
[1719421982246,0.79114839,135.35,135.31,25.8663]
[1719421983147,64.45,135.36,135.33,18.4731]
[1719421983670,64.45,135.36,135.28,136.9586]
[1719421983671,64.45,135.36,135.3,18.4762]
[1719421983875,71.838,135.36,135.3,18.4762]
[1719421984078,71.838,135.36,135.32,7.3898]
[1719421984250,64.45,135.36,135.32,18.4738]
[1719421984454,64.45,135.36,135.33,7.3889]
[1719421984870,64.45,135.36,135.32,25.8636]
[1719421985361,71.8377,135.36,135.32,18.4738]
[1719421985680,64.45,135.36,135.32,25.8636]
[1719421986678,55.15,135.33,135.32,25.8636]
[1719421988169,7.912,135.41,135.36,7.3876]
[1719421988477,55.15,135.37,135.36,7.3876]
[1719421989850,55.15,135.37,135.35,18.4704]
[1719421989851,8.3429,135.44,135.37,18.4665]
[1719421990080,9.13404839,135.44,135.39,7.3856]
[1719421990294,55.15,135.4,135.38,7.3864]
[1719421990478,9.13404839,135.44,135.39,18.4641]
[1719421990479,8.3429,135.44,135.39,18.4641]
[1719421990783,55.15,135.41,135.4,7.3851]
[1719421991181,35.92909412,135.48,135.4,0.34]
[1719421991384,55.15,135.45,135.44,7.3829]
[1719421991675,55.15,135.45,135.44,7.3833]
[1719421992059,55.15,135.45,135.43,18.4594]
[1719421992769,28.224,135.48,135.44,7.3833]
[1719421993085,29.01514839,135.48,135.44,7.3833]
[1719421993385,8.3617,135.48,135.45,26.91284084]
[1719421993560,8.3617,135.48,135.44,7.3832]
[1719421993873,71.6007,135.49,135.45,0.17]
[1719421993874,64.22,135.49,135.45,0.17]
[1719421994185,27.5384,135.51,135.45,0.34]
[1719421994490,64.22,135.53,135.49,7.3804]
[1719421994656,64.22,135.53,135.49,25.8318]
[1719421994856,8.17054839,135.52,135.47,7.3815]
[1719421995157,8.17014839,135.52,135.47,7.3815]
[1719421995391,7.3795,135.51,135.46,7.7221]
[1719421995588,7.3795,135.51,135.47,0.17]
[1719421995776,8.17014839,135.52,135.47,7.7216]
[1719421995971,64.22,135.53,135.47,18.7939]
[1719421996360,20.0,135.52,135.47,18.7939]
[1719421996859,64.22,135.53,135.49,7.3804]
[1719421997067,64.22,135.53,135.49,18.4511]
[1719421997270,7.9345,135.58,135.53,7.378]
[1719421997580,7.9345,135.58,135.53,25.8236]
[1719421998183,8.16674839,135.59,135.54,7.5478]
[1719421998184,7.3756,135.59,135.54,7.5478]
[1719421998491,27.3757,135.58,135.54,0.17]
[1719421998986,20.0,135.58,135.54,0.34]
[1719421999161,20.0,135.58,135.54,7.7175]
[1719421999363,20.79114839,135.59,135.54,7.7175]
[1719421999672,7.3758,135.58,135.54,0.34]
[1719422000562,20.79114839,135.59,135.52,7.3787]
[1719422000563,8.16734839,135.57,135.52,7.3787]
[1719422000871,8.16734839,135.57,135.53,0.34]
[1719422001292,0.79114839,135.57,135.53,7.7184]
[1719422001465,28.16644839,135.59,135.54,7.3778]
[1719422001798,28.16644839,135.59,135.55,0.17]
[1719422001998,28.16644839,135.59,135.55,0.34]
[1719422002804,7.3757,135.58,135.55,0.34]
[1719422003391,64.22,135.56,135.52,25.8254]
[1719422003688,64.22,135.56,135.53,0.34]
[1719422004080,71.5972,135.56,135.5,7.3796]
[1719422004280,71.5972,135.56,135.49,55.3512]
[1719422004678,64.22,135.56,135.51,18.4479]
[1719422004878,0.79114839,135.55,135.48,18.452]
[1719422005079,7.3783,135.54,135.49,7.3806]
[1719422005276,64.22,135.52,135.45,18.4557]
[1719422005475,7.3795,135.51,135.46,7.3818]
[1719422005698,7.3802,135.5,135.45,25.8383]
[1719422005864,7.3807,135.49,135.44,7.3832]
[1719422006072,0.79114839,135.51,135.42,36.9212]
[1719422006368,7.3801,135.5,135.46,7.3822]
[1719422006580,28.17064839,135.51,135.46,7.3822]
[1719422006788,20.79114839,135.51,135.48,18.4524]
[1719422007079,7.8858,135.54,135.5,7.3797]
[1719422007284,72.89694839,135.54,135.51,0.76446312]
[1719422007875,72.1058,135.54,135.51,0.76446312]
[1719422008092,64.22,135.54,135.51,8.14356312]
[1719422008592,7.70324189,135.58,135.52,19.27223239]
[1719422008796,0.79114839,135.57,135.53,7.5482]
[1719422008989,7.3768,135.56,135.53,0.17]
[1719422009304,0.79114839,135.58,135.52,18.6169]
[1719422009469,64.22,135.59,135.53,0.17]
[1719422009668,8.16684839,135.58,135.53,7.548]
[1719422010483,7.3762,135.57,135.53,0.17]
[1719422010687,0.79114839,135.58,135.53,0.17]
[1719422010990,0.79114839,135.58,135.54,7.3775]
[1719422010991,27.3757,135.58,135.54,7.3775]
[1719422011189,20.0,135.58,135.54,7.3775]
[1719422011602,27.3759,135.58,135.53,7.5483]
[1719422011765,8.16744839,135.57,135.54,0.17]
[1719422012092,0.79114839,135.57,135.53,0.17]
[1719422012398,7.3768,135.56,135.53,0.17]
[1719422012567,7.3774,135.55,135.49,18.4508]
[1719422012766,0.79114839,135.54,135.49,18.4508]
[1719422012968,7.3785,135.53,135.45,65.4224]
[1719422013392,8.16924839,135.54,135.49,7.3806]
[1719422013594,64.22,135.55,135.45,65.4224]
[1719422013595,71.5975,135.55,135.5,25.8296]
[1719422013791,8.16914839,135.54,135.5,18.4498]
[1719422014000,8.16934839,135.54,135.5,18.4498]
[1719422014173,7.379,135.52,135.47,18.4532]
[1719422014373,7.379,135.52,135.47,25.8345]
[1719422014774,7.3803,135.5,135.44,18.4581]
[1719422014978,72.39084839,135.51,135.46,7.3821]
[1719422015280,65.01114839,135.51,135.47,7.3814]
[1719422015477,72.39064839,135.51,135.46,18.4553]
[1719422015698,15.5892,135.54,135.5,7.3799]
[1719422015898,20.79114839,135.53,135.49,7.3801]
[1719422016088,28.16964839,135.53,135.49,7.3801]
[1719422016580,28.16964839,135.53,135.48,25.8337]
[1719422017202,20.79114839,135.53,135.47,7.7216]
[1719422017371,7.3801,135.5,135.47,0.34]
[1719422017579,0.79114839,135.52,135.45,18.4561]
[1719422017791,7.3801,135.5,135.45,25.8387]
[1719422018190,0.79114839,135.49,135.44,7.3832]
[1719422018378,7.3809,135.49,135.44,7.3832]
[1719422018689,71.6,135.5,135.44,18.458]
[1719422018893,8.17184839,135.49,135.44,18.458]
[1719422019202,7.3826,135.46,135.41,7.3845]
[1719422019382,0.79114839,135.48,135.43,7.3838]
[1719422019581,7.382,135.47,135.43,7.3838]
[1719422019794,8.17344839,135.46,135.42,25.8452]
[1719422019989,71.6023,135.46,135.41,7.3848]
[1719422020181,0.79114839,135.45,135.41,7.3848]
[1719422020383,8.17414839,135.45,135.4,7.3853]
[1719422021077,7.3834,135.44,135.4,7.3853]
[1719422021292,0.79114839,135.43,135.4,7.3853]
[1719422021706,0.79114839,135.43,135.41,18.4623]
[1719422021888,0.79114839,135.45,135.41,25.8468]
[1719422023311,0.79114839,135.45,135.42,7.3843]
[1719422023604,0.79114839,135.45,135.41,18.4623]
[1719422023814,0.79114839,135.45,135.43,7.3837]
[1719422023989,0.79114839,135.45,135.41,18.4623]
[1719422024184,64.22,135.46,135.43,18.4592]
[1719422024385,64.22,135.46,135.44,7.3829]
[1719422024597,8.0999,135.47,135.45,18.4557]
[1719422024791,8.0999,135.47,135.44,7.383]
[1719422025191,8.0999,135.47,135.43,0.34]
[1719422025425,8.89104839,135.47,135.43,0.34]
[1719422025588,8.89104839,135.47,135.43,7.7235]
[1719422026015,16.27274839,135.47,135.43,7.7235]
[1719422026307,8.89104839,135.47,135.44,25.841]
[1719422026513,8.89104839,135.47,135.44,18.4582]
[1719422027791,16.27274839,135.47,135.43,7.3835]
[1719422027990,8.89104839,135.47,135.44,7.3832]
[1719422028405,8.89104839,135.47,135.45,18.4564]
[1719422028607,8.89104839,135.47,135.45,25.8391]
[1719422028815,8.89104839,135.47,135.45,18.4564]
[1719422029004,8.89104839,135.47,135.43,7.3837]
[1719422029206,8.89104839,135.47,135.42,18.8]
[1719422029406,7.3824,135.46,135.41,7.3846]
[1719422029595,0.79114839,135.45,135.41,18.4613]
[1719422029793,0.79114839,135.45,135.42,7.3842]
[1719422029993,0.79114839,135.45,135.41,25.846]
[1719422030204,0.79114839,135.45,135.43,18.4586]
[1719422030515,8.89104839,135.47,135.43,18.4586]
[1719422030718,8.89104839,135.47,135.44,7.383]
[1719422032115,8.89104839,135.47,135.43,25.8422]
[1719422032320,16.27284839,135.47,135.43,25.8422]
[1719422032914,7.3822,135.46,135.42,0.34]
[1719422033119,0.79114839,135.45,135.41,0.34]
[1719422033317,8.17404839,135.45,135.4,25.8478]
[1719422033714,8.17404839,135.45,135.36,36.936]
[1719422033715,7.384,135.43,135.38,7.3861]
[1719422033921,0.79114839,135.42,135.38,7.3864]
[1719422034615,0.79114839,135.42,135.37,18.4669]
[1719422034616,0.79114839,135.42,135.39,18.465]
[1719422034921,0.79114839,135.42,135.4,7.3855]
[1719422035306,0.79114839,135.42,135.39,25.8508]
[1719422036023,64.22,135.43,135.39,18.465]
[1719422036201,27.70546129,135.51,135.47,7.3813]
[1719422036395,0.79114839,135.5,135.46,25.8372]
[1719422036624,28.8258,135.52,135.49,7.3804]
[1719422038320,0.79114839,135.51,135.48,18.452]
[1719422038931,103.46004839,135.51,135.43,7.3838]
[1719422039104,103.46004839,135.51,135.39,36.9281]
[1719422039105,64.22,135.46,135.41,7.3849]
[1719422039429,0.79114839,135.45,135.42,7.3842]
[1719422039930,0.79114839,135.45,135.41,18.4618]
[1719422040131,0.79114839,135.45,135.41,25.8465]
[1719422040497,0.79114839,135.45,135.41,18.4618]
[1719422040698,64.22,135.46,135.45,7.3827]
[1719422041246,7.3801,135.5,135.46,18.4555]
[1719422041436,7.3801,135.5,135.45,7.3824]
[1719422041437,20.79114839,135.49,135.43,18.4592]
[1719422041741,20.79114839,135.49,135.47,7.3817]
[1719422041742,0.79114839,135.48,135.47,7.3817]
[1719422041928,20.79114839,135.51,135.47,18.4539]
[1719422042435,20.79114839,135.51,135.47,25.8353]
[1719422042932,28.17074839,135.51,135.47,25.8353]
[1719422043420,28.3476,135.55,135.5,7.3797]
[1719422043605,0.79114839,135.54,135.49,18.4509]
[1719422043810,0.79114839,135.54,135.51,7.3791]
[1719422044128,9.39244839,135.55,135.51,18.4487]
[1719422044333,8.16734839,135.58,135.53,7.378]
[1719422044626,0.79114839,135.57,135.53,25.824]
[1719422044817,8.16734839,135.57,135.52,7.3788]
[1719422045623,7.3781,135.54,135.5,0.17]
[1719422045829,8.16964839,135.53,135.49,25.8317]
[1719422046135,8.16964839,135.53,135.48,7.3808]
[1719422046301,8.16964839,135.53,135.47,0.17]
[1719422046302,0.79114839,135.53,135.47,0.17]
[1719422046506,0.79114839,135.53,135.5,7.38]
[1719422046739,0.79114839,135.53,135.49,7.3804]
[1719422047526,0.79114839,135.53,135.51,7.3795]
[1719422047722,0.79114839,135.53,135.5,25.8297]
[1719422048731,0.79114839,135.53,135.5,18.4499]
[1719422049549,0.79114839,135.53,135.5,25.8299]
[1719422049710,0.79114839,135.53,135.5,18.4499]
[1719422050336,8.16954839,135.53,135.48,7.3811]
[1719422050541,7.3799,135.51,135.45,7.3826]
[1719422050836,0.79114839,135.5,135.47,7.3815]
[1719422051215,0.79114839,135.5,135.48,7.3811]
[1719422051638,64.22,135.51,135.47,18.4539]
[1719422051842,36.8749,135.6,135.48,0.34]
[1719422051843,8.2986,135.55,135.48,0.34]
[1719422052142,0.79114839,135.54,135.51,25.8277]
[1719422052345,0.79114839,135.54,135.51,18.4485]
[1719422052591,0.79114839,135.54,135.51,25.8278]
[1719422052850,9.08974839,135.55,135.51,18.4485]
[1719422053144,0.79114839,135.56,135.53,18.4458]
[1719422053443,28.16714839,135.58,135.53,25.824]
[1719422053622,8.16764839,135.57,135.52,7.5487]
[1719422054017,7.3774,135.55,135.5,25.9988]
[1719422054334,0.79114839,135.54,135.49,0.17]
[1719422054636,60.6193,135.58,135.48,25.8322]
[1719422054637,0.79114839,135.57,135.48,25.8322]
[1719422054839,0.79114839,135.57,135.45,36.9125]
[1719422054840,18.443,135.56,135.47,7.3816]
[1719422055046,7.3794,135.52,135.46,18.4542]
[1719422055222,0.79114839,135.51,135.46,18.4542]
[1719422055422,0.79114839,135.51,135.47,7.3814]
[1719422056138,0.79114839,135.51,135.46,25.8359]
[1719422056348,0.79114839,135.51,135.46,18.4542]
[1719422056550,0.79114839,135.51,135.44,57.4589]
[1719422056551,65.01114839,135.51,135.44,7.3829]
[1719422056747,20.0,135.5,135.43,18.4586]
[1719422057053,7.3811,135.48,135.43,18.4586]
[1719422057244,65.01114839,135.47,135.4,39.0064]
[1719422057559,65.01114839,135.47,135.42,18.4608]
[1719422057752,65.01114839,135.47,135.43,7.3835]